[Event "4th EFE Metz Festival-IM"]
[Site "Metz"]
[Date "2018.07.25"]
[Round "4"]
[White "Stephan, Victor"]
[Black "Haast, Mark"]
[Result "1/2-1/2"]
[ECO "E46"]
[WhiteElo "2356"]
[BlackElo "2356"]
[Annotator "NA"]
[PlyCount "161"]
[EventDate "2018.07.22"]
[EventType "tourn"]
[EventCountry "FRA"]
[SourceTitle "playchess.com"]
[Source "ChessBase"]
[SourceQuality "1"]
[TimeControl "5400+30"]

1. d4 {[%emt 0:00:00]} Nf6 {[%emt 0:00:00]} 2. c4 {[%emt 0:00:00]} e6 {[%emt 0:00:01]} 3. Nc3 {[%emt 0:00:10]} Bb4 {[%emt 0:00:15]} 4. e3 {[%emt 0:00:18]} O-O {[%emt 0:00:20]} 5. Nge2 {[%emt 0:00:12]} Re8 {[%emt 0:00:14]} 6. a3 {[%emt 0:00:12]} Bf8 {[%emt 0:00:09]} 7. Ng3 {[%emt 0:00:30]} d5 {[%emt 0:00:56]} 8. Be2 {[%emt 0:00:14]} dxc4 {[%emt 0:05:32]} 9. O-O {[%emt 0:06:37]} a6 {[%emt 0:02:58]} 10. Bxc4 {[%emt 0:00:42]} c5 {[%emt 0:04:28]} 11. dxc5 {[%emt 0:06:05]} Qxd1 {[%emt 0:00:27]} 12. Rxd1 {[%emt 0:00:33]} Bxc5 {[%emt 0:00:08]} 13. b4 {[%emt 0:05:49]} Be7 {[%emt 0:00:27]} 14. Be2 {[%emt 0:04:34]} Bd7 {[%emt 0:01:51]} 15. Bb2 {[%emt 0:05:51]} Bc6 {[%emt 0:01:00]} 16. Rac1 {[%emt 0:13:27]} Nbd7 {[%emt 0:01:53]} 17. e4 {[%emt 0:02:54]} Red8 {[%emt 0:07:19]} 18. f3 {[%emt 0:00:22]} Ne8 {[%emt 0:02:57]} 19. f4 {[%emt 0:04:09]} Rac8 {[%emt 0:12:01]} 20. b5 {[%emt 0:02:24]} Bc5+ {[%emt 0:05:07]} 21. Kf1 {[%emt 0:03:58]} axb5 {[%emt 0:00:14]} 22. Nxb5 {[%emt 0:00:06]} Be3 {[%emt 0:01:15]} 23. Rc3 {[%emt 0:00:27]} Bxf4 {[%emt 0:02:49]} 24. Na7 {[%emt 0:00:49]} Rc7 {[%emt 0:01:53]} 25. Nxc6 {[%emt 0:02:37]} bxc6 {[%emt 0:01:00]} 26. Rcd3 {[%emt 0:02:33]} Bxg3 {[%emt 0:07:42]} 27. Rxg3 {[%emt 0:03:45]} Rb8 {[%emt 0:00:37]} 28. Bc3 {[%emt 0:02:12]} Ra7 {[%emt 0:01:07]} 29. Bd4 {[%emt 0:07:27]} c5 {[%emt 0:00:41]} 30. Bf2 {[%emt 0:00:04]} Nef6 {[%emt 0:04:26]} 31. Rgd3 {[%emt 0:00:36]} h6 {[%emt 0:01:28]} 32. Bf3 {[%emt 0:02:37]} e5 {[%emt 0:01:20]} 33. Rc3 {[%emt 0:02:26]} Ra5 {[%emt 0:03:01]} 34. Rdc1 {[%emt 0:00:58]} Rc8 {[%emt 0:00:19]} 35. Rb1 {[%emt 0:03:36]} Rc7 {[%emt 0:01:06]} 36. Be3 {[%emt 0:01:54]} g5 {[%emt 0:07:11]} 37. h3 {[%emt 0:00:04]} Kg7 {[%emt 0:00:29]} 38. Rbc1 {[%emt 0:00:04]} Kg6 {[%emt 0:01:35]} 39. g4 {[%emt 0:00:03]} Kg7 {[%emt 0:05:33]} 40. Kg2 {[%emt 0:00:26]} Nh7 {[%emt 0:01:26]} 41. Rd3 {[%emt 0:04:42]} Nhf8 {[%emt 0:00:39]} 42. Rcd1 {[%emt 0:01:01]} Raa7 {[%emt 0:02:07]} 43. Rc1 {[%emt 0:02:39]} Ne6 {[%emt 0:00:19]} 44. Rdc3 {[%emt 0:00:04]} Ra5 {[%emt 0:02:40]} 45. Rd1 {[%emt 0:00:49]} Rca7 {[%emt 0:00:43]} 46. Rd5 {[%emt 0:01:13]} Rxa3 {[%emt 0:00:49]} 47. Rxa3 {[%emt 0:03:51]} Rxa3 {[%emt 0:00:07]} 48. Kf2 {[%emt 0:00:32]} Ra7 {[%emt 0:01:28]} 49. Be2 {[%emt 0:00:54]} Rb7 {[%emt 0:04:47]} 50. Ba6 {[%emt 0:00:21]} Rc7 {[%emt 0:00:56]} 51. Bb5 {[%emt 0:00:02]} Nef8 {[%emt 0:00:31]} 52. Ke2 {[%emt 0:01:16]} f6 {[%emt 0:00:14]} 53. Rd6 {[%emt 0:00:33]} Kf7 {[%emt 0:00:25]} 54. Bc4+ {[%emt 0:00:31]} Ke7 {[%emt 0:00:02]} 55. Ra6 {[%emt 0:00:03]} Ng6 {[%emt 0:02:50]} 56. Re6+ {[%emt 0:00:47]} Kd8 {[%emt 0:01:44]} 57. Bb5 {[%emt 0:00:56]} Ngf8 {[%emt 0:00:04]} 58. Ra6 {[%emt 0:00:48]} Rb7 {[%emt 0:00:24]} 59. Bc4 {[%emt 0:01:17]} Rb6 {[%emt 0:01:49]} 60. Ra7 {[%emt 0:01:37]} Ne6 {[%emt 0:00:51]} 61. Ra8+ {[%emt 0:00:03]} Ke7 {[%emt 0:00:20]} 62. Rh8 {[%emt 0:00:33]} Nd4+ {[%emt 0:00:59]} 63. Kd3 {[%emt 0:00:02]} Rb4 {[%emt 0:00:41]} 64. Rh7+ {[%emt 0:00:23]} Ke8 {[%emt 0:01:23]} 65. Rh8+ {[%emt 0:01:02]} Ke7 {[%emt 0:00:01]} 66. Rh7+ {[%emt 0:00:05]} Kd8 {[%emt 0:00:10]} 67. Rxh6 {[%emt 0:01:59]} Nb6 {[%emt 0:00:01]} 68. Bd5 {[%emt 0:02:44]} c4+ {[%emt 0:00:23]} 69. Kd2 {[%emt 0:01:16]} Ke7 {[%emt 0:01:02]} 70. h4 {[%emt 0:00:13]} gxh4 {[%emt 0:00:10]} 71. g5 {[%emt 0:00:13]} Nxd5 {[%emt 0:00:11]} 72. exd5 {[%emt 0:00:46]} fxg5 {[%emt 0:01:07]} 73. Bxg5+ {[%emt 0:00:23]} Kd7 {[%emt 0:00:01]} 74. Rh7+ {[%emt 0:00:31]} Kc8 {[%emt 0:00:53]} 75. d6 {[%emt 0:00:33]} Rb7 {[%emt 0:00:03]} 76. Rh8+ {[%emt 0:00:44]} Kd7 {[%emt 0:00:01]} 77. Rh7+ {[%emt 0:00:24]} Kc6 {[%emt 0:00:03]} 78. Rxb7 {[%emt 0:00:13]} Kxb7 {[%emt 0:00:01]} 79. d7 {[%emt 0:00:05]} Ne6 {[%emt 0:00:21]} 80. Bxh4 {[%emt 0:00:06]} Kc7 {[%emt 0:00:13]} 81. Kc3 {[%emt 0:00:22]} 1/2-1/2

[Event "4th EFE Metz Festival-IM"]
[Site "Metz"]
[Date "2018.07.25"]
[Round "4"]
[White "Harutyunyan, Ruben"]
[Black "Gatineau, Yovann"]
[Result "1/2-1/2"]
[ECO "B92"]
[WhiteElo "2303"]
[BlackElo "2373"]
[Annotator "NA"]
[PlyCount "77"]
[EventDate "2018.07.22"]
[EventType "tourn"]
[EventCountry "FRA"]
[SourceTitle "playchess.com"]
[Source "ChessBase"]
[SourceQuality "1"]
[TimeControl "5400+30"]

1. e4 {[%emt 0:00:00]} c5 {[%emt 0:42:26]} 2. Nf3 {[%emt 0:00:00]} d6 {[%emt 0:00:07]} 3. d4 {[%emt 0:00:00]} Nf6 {[%emt 0:00:07]} 4. Nc3 {[%emt 0:00:00]} cxd4 {[%emt 0:00:08]} 5. Nxd4 {[%emt 0:00:00]} a6 {[%emt 0:00:12]} 6. Be2 {[%emt 0:00:00]} e5 {[%emt 0:00:05]} 7. Nf3 {[%emt 0:00:00]} Be7 {[%emt 0:00:57]} 8. Bg5 {[%emt 0:00:00]} Nbd7 {[%emt 0:02:14]} 9. a4 {[%emt 0:00:02]} O-O {[%emt 0:02:03]} 10. Nd2 {[%emt 0:00:16]} h6 {[%emt 0:05:33]} 11. Bh4 {[%emt 0:02:35]} d5 {[%emt 0:00:13]} 12. exd5 {[%emt 0:00:42]} Nxd5 {[%emt 0:00:26]} 13. Bxe7 {[%emt 0:00:20]} Nxe7 {[%emt 0:00:17]} 14. Nc4 {[%emt 0:00:19]} Nc6 {[%emt 0:01:29]} 15. Qd6 {[%emt 0:03:49]} Nf6 {[%emt 0:02:25]} 16. O-O-O {[%emt 0:01:45]} Be6 {[%emt 0:00:18]} 17. Qxd8 {[%emt 0:03:43]} Rfxd8 {[%emt 0:02:36]} 18. Rxd8+ {[%emt 0:04:56]} Rxd8 {[%emt 0:00:14]} 19. Rd1 {[%emt 0:00:38]} Rd4 {[%emt 0:15:06]} 20. Nd6 {[%emt 0:22:02]} Rb4 {[%emt 0:00:02]} 21. b3 {[%emt 0:11:40]} Kf8 {[%emt 0:06:00]} 22. Bc4 {[%emt 0:05:52]} Bxc4 {[%emt 0:06:09]} 23. Nxc4 {[%emt 0:00:42]} b5 {[%emt 0:00:05]} 24. axb5 {[%emt 0:08:11]} axb5 {[%emt 0:00:05]} 25. Nb6 {[%emt 0:05:34]} Rh4 {[%emt 0:03:21]} 26. Nxb5 {[%emt 0:12:39]} Rxh2 {[%emt 0:00:11]} 27. Rd6 {[%emt 0:01:45]} Nd4 {[%emt 0:00:12]} 28. Nxd4 {[%emt 0:01:15]} exd4 {[%emt 0:00:05]} 29. Rxd4 {[%emt 0:02:37]} Rxg2 {[%emt 0:00:04]} 30. c4 {[%emt 0:00:08]} Rg4 {[%emt 0:05:07]} 31. Rd3 {[%emt 0:02:35]} Ke7 {[%emt 0:00:41]} 32. c5 {[%emt 0:00:46]} Rb4 {[%emt 0:00:44]} 33. Nc8+ {[%emt 0:04:35]} Ke6 {[%emt 0:00:16]} 34. c6 {[%emt 0:00:27]} Rb5 {[%emt 0:04:19]} 35. Re3+ {[%emt 0:02:54]} Re5 {[%emt 0:01:44]} 36. Rxe5+ {[%emt 0:03:50]} Kxe5 {[%emt 0:00:06]} 37. b4 {[%emt 0:00:10]} Kd5 {[%emt 0:01:51]} 38. b5 Ke5 39. Ne7 {Kd5} 1/2-1/2

[Event "4th EFE Metz Festival-IM"]
[Site "Metz"]
[Date "2018.07.25"]
[Round "4"]
[White "Le Corre, Benjamin"]
[Black "Villegas, Pierre"]
[Result "0-1"]
[ECO "B13"]
[WhiteElo "2257"]
[BlackElo "2376"]
[Annotator "NA"]
[PlyCount "60"]
[EventDate "2018.07.22"]
[EventType "tourn"]
[EventCountry "FRA"]
[SourceTitle "playchess.com"]
[Source "ChessBase"]
[SourceQuality "1"]
[TimeControl "5400+30"]

1. e4 {[%emt 0:00:00]} c6 {[%emt 0:00:00]} 2. d4 {[%emt 0:00:00]} d5 {[%emt 0:00:00]} 3. exd5 {[%emt 0:00:00]} cxd5 {[%emt 0:00:00]} 4. Bd3 {[%emt 0:00:00]} Nc6 {[%emt 0:00:19]} 5. c3 {[%emt 0:00:00]} Nf6 {[%emt 0:02:09]} 6. Bf4 {[%emt 0:01:20]} Bg4 {[%emt 0:00:11]} 7. Qb3 {[%emt 0:00:28]} Qc8 {[%emt 0:00:06]} 8. Nd2 {[%emt 0:02:20]} e6 {[%emt 0:00:09]} 9. Ngf3 {[%emt 0:02:02]} Be7 {[%emt 0:03:19]} 10. Ne5 {[%emt 0:04:24]} Bh5 {[%emt 0:07:28]} 11. Nf1 {[%emt 0:09:39]} Nd7 {[%emt 0:08:15]} 12. Ng3 {[%emt 0:07:10]} Bg6 {[%emt 0:07:58]} 13. Nxg6 {[%emt 0:01:27]} hxg6 {[%emt 0:00:05]} 14. Qc2 {[%emt 0:11:22]} Nf6 {[%emt 0:04:48]} 15. Be5 {[%emt 0:03:09]} Nxe5 {[%emt 0:03:37]} 16. dxe5 {[%emt 0:00:09]} Nd7 {[%emt 0:00:04]} 17. Qe2 {[%emt 0:07:46]} a6 {[%emt 0:02:59]} 18. O-O {[%emt 0:06:19]} Qc7 {[%emt 0:09:09]} 19. Rfe1 {[%emt 0:06:38]} Rh4 {[%emt 0:01:51]} 20. Nf1 {[%emt 0:00:41]} O-O-O {[%emt 0:09:00]} 21. Rac1 {[%emt 0:04:33]} Rh5 {[%emt 0:07:45]} 22. c4 {[%emt 0:09:00]} d4 {[%emt 0:00:43]} 23. f4 {[%emt 0:00:19]} a5 {[%emt 0:05:41]} 24. a3 {[%emt 0:00:41]} a4 {[%emt 0:02:05]} 25. c5 {[%emt 0:05:56]} Nxc5 {[%emt 0:01:25]} 26. Rc4 {[%emt 0:00:05]} Kb8 {[%emt 0:01:43]} 27. Rec1 {[%emt 0:00:47]} Qa5 {[%emt 0:02:10]} 28. Nd2 {[%emt 0:01:17]} Rhh8 {[%emt 0:02:15]} 29. R1c2 {[%emt 0:06:32]} Rd5 {[%emt 0:04:34]} 30. Ne4 {[%emt 0:01:44]} Nxd3 {[%emt 0:01:25]} 0-1

[Event "4th EFE Metz Festival-IM"]
[Site "Metz"]
[Date "2018.07.26"]
[Round "5"]
[White "Villegas, Pierre"]
[Black "Harutyunyan, Ruben"]
[Result "1/2-1/2"]
[ECO "A06"]
[WhiteElo "2376"]
[BlackElo "2303"]
[Annotator "NA"]
[PlyCount "70"]
[EventDate "2018.07.22"]
[EventType "tourn"]
[EventCountry "FRA"]
[SourceTitle "playchess.com"]
[Source "ChessBase"]
[SourceQuality "1"]
[TimeControl "5400+30"]

1. Nf3 {[%emt 0:00:00]} d5 {[%emt 0:00:04]} 2. c4 {[%emt 0:00:00]} c6 {[%emt 0:00:05]} 3. d4 {[%emt 0:00:00]} Nf6 {[%emt 0:00:04]} 4. g3 {[%emt 0:00:10]} Bf5 {[%emt 0:00:11]} 5. Nc3 {[%emt 0:00:18]} e6 {[%emt 0:00:31]} 6. Nh4 {[%emt 0:00:30]} Be4 {[%emt 0:06:50]} 7. f3 {[%emt 0:00:45]} Bg6 {[%emt 0:00:32]} 8. Qb3 {[%emt 0:00:51]} Qb6 {[%emt 0:07:29]} 9. Nxg6 {[%emt 0:01:42]} hxg6 {[%emt 0:01:15]} 10. c5 {[%emt 0:00:30]} Qc7 {[%emt 0:07:29]} 11. e4 {[%emt 0:07:09]} dxe4 {[%emt 0:06:07]} 12. fxe4 {[%emt 0:01:31]} Nbd7 {[%emt 0:17:39]} 13. e5 {[%emt 0:14:42]} Nxe5 {[%emt 0:18:27]} 14. dxe5 {[%emt 0:02:05]} Qxe5+ {[%emt 0:00:56]} 15. Be2 {[%emt 0:01:27]} O-O-O {[%emt 0:13:26]} 16. Bf4 {[%emt 0:05:42]} Qxc5 {[%emt 0:00:58]} 17. Rd1 {[%emt 0:26:10]} Rxd1+ {[%emt 0:01:55]} 18. Nxd1 {[%emt 0:01:19]} Nd5 {[%emt 0:12:32]} 19. Be3 {[%emt 0:02:09]} Nxe3 {[%emt 0:00:33]} 20. Qxe3 {[%emt 0:02:57]} Qb4+ {[%emt 0:01:03]} 21. Kf1 {[%emt 0:02:32]} Bc5 {[%emt 0:01:14]} 22. Qc3 {[%emt 0:02:33]} Qe4 {[%emt 0:00:38]} 23. Bf3 {[%emt 0:00:11]} Qf5 {[%emt 0:00:12]} 24. g4 {[%emt 0:10:18]} Qf4 {[%emt 0:00:54]} 25. Qxc5 {[%emt 0:00:11]} Qxf3+ {[%emt 0:00:04]} 26. Nf2 {[%emt 0:00:02]} Rd8 {[%emt 0:00:51]} 27. Qc2 {[%emt 0:00:32]} Rd5 {[%emt 0:01:21]} 28. Rg1 {[%emt 0:01:09]} Qf4 {[%emt 0:00:27]} 29. Qe4 {[%emt 0:01:37]} Qxh2 {[%emt 0:00:34]} 30. Qb4 {[%emt 0:00:50]} Kc7 {[%emt 0:00:32]} 31. Rh1 {[%emt 0:00:51]} Rd1+ {[%emt 0:00:29]} 32. Ke2 {[%emt 0:03:02]} Rxh1 {[%emt 0:00:05]} 33. Qe7+ {[%emt 0:00:05]} Kc8 {[%emt 0:00:10]} 34. Qe8+ {[%emt 0:00:03]} Kc7 {[%emt 0:00:03]} 35. Qe7+ {[%emt 0:00:02]} Kc8 {[%emt 0:00:12]} 1/2-1/2

[Event "4th EFE Metz Festival-IM"]
[Site "Metz"]
[Date "2018.07.26"]
[Round "5"]
[White "Gatineau, Yovann"]
[Black "Stephan, Victor"]
[Result "0-1"]
[ECO "D37"]
[WhiteElo "2373"]
[BlackElo "2356"]
[Annotator "NA"]
[PlyCount "150"]
[EventDate "2018.07.22"]
[EventType "tourn"]
[EventCountry "FRA"]
[SourceTitle "playchess.com"]
[Source "ChessBase"]
[SourceQuality "1"]
[TimeControl "5400+30"]

1. d4 d5 {[%emt 0:01:12]} 2. c4 {[%emt 0:09:20]} e6 {[%emt 0:00:35]} 3. Nf3 {[%emt 0:00:53]} Nf6 {[%emt 0:00:38]} 4. Nc3 {[%emt 0:00:15]} Be7 {[%emt 0:00:24]} 5. Bf4 {[%emt 0:00:30]} O-O {[%emt 0:02:28]} 6. e3 {[%emt 0:00:22]} Nbd7 {[%emt 0:00:35]} 7. c5 {[%emt 0:00:21]} c6 {[%emt 0:00:23]} 8. Bd3 {[%emt 0:00:38]} b6 {[%emt 0:00:27]} 9. b4 {[%emt 0:00:06]} a5 {[%emt 0:01:09]} 10. a3 {[%emt 0:00:05]} Ba6 {[%emt 0:10:24]} 11. Bxa6 {[%emt 0:00:08]} Rxa6 {[%emt 0:00:15]} 12. b5 {[%emt 0:00:16]} cxb5 {[%emt 0:01:09]} 13. c6 {[%emt 0:00:07]} Qc8 {[%emt 0:01:14]} 14. c7 {[%emt 0:00:45]} Bxa3 {[%emt 0:08:00]} 15. Nxb5 {[%emt 0:04:05]} Bb4+ {[%emt 0:00:42]} 16. Ke2 {[%emt 0:00:47]} Ra8 {[%emt 0:00:22]} 17. Qd3 {[%emt 0:01:07]} Qa6 {[%emt 0:07:30]} 18. Bd6 {[%emt 0:10:18]} Bxd6 {[%emt 0:05:27]} 19. Nxd6 {[%emt 0:00:06]} Qxd3+ {[%emt 0:00:58]} 20. Kxd3 {[%emt 0:00:05]} Ne4 {[%emt 0:01:02]} 21. c8=Q {[%emt 0:01:40]} Rfxc8 {[%emt 0:02:24]} 22. Nxc8 {[%emt 0:00:05]} Nxf2+ {[%emt 0:11:41]} 23. Ke2 {[%emt 0:00:07]} Nxh1 {[%emt 0:00:04]} 24. Nd6 {[%emt 0:00:14]} b5 {[%emt 0:02:39]} 25. Rxh1 {[%emt 0:08:43]} b4 {[%emt 0:00:06]} 26. Rc1 {[%emt 0:10:48]} Nb6 {[%emt 0:08:19]} 27. Rc6 {[%emt 0:25:28]} Rb8 {[%emt 0:00:25]} 28. Rc5 {[%emt 0:00:33]} Ra8 {[%emt 0:07:48]} 29. Nd2 {[%emt 0:04:17]} Kf8 {[%emt 0:06:01]} 30. Rb5 {[%emt 0:08:06]} Na4 {[%emt 0:04:05]} 31. Rb7 {[%emt 0:00:05]} f6 {[%emt 0:01:21]} 32. Rf7+ {[%emt 0:00:52]} Kg8 {[%emt 0:00:04]} 33. Rc7 {[%emt 0:00:08]} Nc3+ {[%emt 0:02:47]} 34. Kd3 {[%emt 0:00:05]} a4 {[%emt 0:00:42]} 35. Rc8+ {[%emt 0:00:40]} Rxc8 {[%emt 0:00:05]} 36. Nxc8 {[%emt 0:00:02]} Kf7 {[%emt 0:01:35]} 37. Na7 {[%emt 0:01:56]} Nd1 {[%emt 0:01:37]} 38. Nc6 {[%emt 0:01:08]} b3 {[%emt 0:00:19]} 39. Nb1 {[%emt 0:00:44]} Nb2+ {[%emt 0:02:01]} 40. Kc3 {[%emt 0:01:32]} Nc4 {[%emt 0:00:06]} 41. e4 {[%emt 0:00:08]} Ne3 {[%emt 0:01:05]} 42. exd5 {[%emt 0:00:15]} exd5 {[%emt 0:01:43]} 43. Nb4 {[%emt 0:00:23]} Ke6 {[%emt 0:00:35]} 44. Nd3 {[%emt 0:00:16]} Nxg2 {[%emt 0:00:29]} 45. Nc5+ {[%emt 0:01:29]} Kf5 {[%emt 0:00:28]} 46. Nxa4 {[%emt 0:00:05]} Nf4 {[%emt 0:01:29]} 47. Nd2 {[%emt 0:01:28]} Kg4 {[%emt 0:00:30]} 48. Nb6 {[%emt 0:02:10]} Kh3 {[%emt 0:00:53]} 49. Nf1 {[%emt 0:00:06]} Ne2+ {[%emt 0:01:00]} 50. Kd3 {[%emt 0:06:08]} b2 {[%emt 0:00:36]} 51. Nd2 {[%emt 0:00:05]} Nf4+ {[%emt 0:00:44]} 52. Ke3 {[%emt 0:00:05]} g5 {[%emt 0:00:25]} 53. Na4 {[%emt 0:00:43]} Kxh2 {[%emt 0:00:45]} 54. Nxb2 {[%emt 0:00:07]} Ne6 {[%emt 0:00:28]} 55. Nd3 {[%emt 0:02:29]} Kg3 {[%emt 0:01:14]} 56. Ne1 {[%emt 0:03:56]} f5 {[%emt 0:01:30]} 57. Nf1+ {[%emt 0:00:27]} Kg4 {[%emt 0:00:56]} 58. Nf3 {[%emt 0:00:41]} f4+ {[%emt 0:00:21]} 59. Kf2 {[%emt 0:00:16]} Kf5 {[%emt 0:00:05]} 60. Ne5 {[%emt 0:00:43]} Nxd4 {[%emt 0:00:27]} 61. Nd7 {[%emt 0:00:21]} Ne6 {[%emt 0:00:53]} 62. Nb6 {[%emt 0:00:12]} d4 {[%emt 0:00:09]} 63. Nc4 {[%emt 0:00:15]} g4 {[%emt 0:00:24]} 64. Nd6+ {[%emt 0:00:06]} Kg6 {[%emt 0:00:45]} 65. Kg2 {[%emt 0:00:48]} h5 {[%emt 0:00:06]} 66. Nh2 {[%emt 0:00:12]} Nc5 {[%emt 0:00:53]} 67. Nc4 {[%emt 0:00:16]} d3 {[%emt 0:00:40]} 68. Nf1 {[%emt 0:00:28]} h4 {[%emt 0:00:38]} 69. Nh2 {[%emt 0:00:26]} Kg5 {[%emt 0:00:37]} 70. Nd2 {[%emt 0:00:07]} h3+ {[%emt 0:00:25]} 71. Kg1 {[%emt 0:00:07]} Kf5 {[%emt 0:00:19]} 72. Nhf1 {[%emt 0:00:25]} Ne4 {[%emt 0:00:39]} 73. Nc4 {[%emt 0:00:03]} g3 {[%emt 0:00:21]} 74. Nb2 {[%emt 0:00:12]} d2 {[%emt 0:00:44]} 75. Nd1 {[%emt 0:00:03]} Nf2 {[%emt 0:00:39]} 0-1

[Event "4th EFE Metz Festival-IM"]
[Site "Metz"]
[Date "2018.07.26"]
[Round "5"]
[White "Haast, Mark"]
[Black "Mohammad, Fahim"]
[Result "1-0"]
[ECO "A36"]
[WhiteElo "2356"]
[BlackElo "2383"]
[Annotator "NA"]
[PlyCount "81"]
[EventDate "2018.07.22"]
[EventType "tourn"]
[EventCountry "FRA"]
[SourceTitle "playchess.com"]
[Source "ChessBase"]
[SourceQuality "1"]
[TimeControl "5400+30"]

1. c4 {[%emt 0:00:00]} c5 {[%emt 0:09:28]} 2. g3 {[%emt 0:00:00]} g6 {[%emt 0:00:40]} 3. Bg2 {[%emt 0:00:09]} Bg7 {[%emt 0:01:17]} 4. Nc3 {[%emt 0:00:12]} Nc6 {[%emt 0:00:37]} 5. a3 {[%emt 0:00:27]} e6 {[%emt 0:05:54]} 6. d3 {[%emt 0:03:15]} Nge7 {[%emt 0:01:48]} 7. Bg5 {[%emt 0:00:37]} h6 {[%emt 0:01:39]} 8. Bd2 {[%emt 0:00:14]} d5 {[%emt 0:02:20]} 9. Rb1 {[%emt 0:00:52]} O-O {[%emt 0:04:23]} 10. Qc1 {[%emt 0:01:32]} dxc4 {[%emt 0:08:00]} 11. dxc4 {[%emt 0:00:18]} Kh7 {[%emt 0:00:26]} 12. Nf3 {[%emt 0:02:11]} e5 {[%emt 0:13:03]} 13. b4 {[%emt 0:07:33]} cxb4 {[%emt 0:00:29]} 14. axb4 {[%emt 0:00:06]} f5 {[%emt 0:07:18]} 15. O-O {[%emt 0:30:01]} e4 {[%emt 0:01:49]} 16. Ne1 {[%emt 0:00:10]} Be6 {[%emt 0:01:09]} 17. c5 {[%emt 0:02:23]} Nd5 {[%emt 0:04:03]} 18. Nxd5 {[%emt 0:00:50]} Qxd5 {[%emt 0:00:26]} 19. Nc2 {[%emt 0:04:38]} Rad8 {[%emt 0:05:00]} 20. Rd1 {[%emt 0:01:05]} Qa2 {[%emt 0:03:33]} 21. b5 {[%emt 0:03:10]} Nd4 {[%emt 0:00:59]} 22. Nxd4 {[%emt 0:00:12]} Rxd4 {[%emt 0:00:51]} 23. Be3 {[%emt 0:01:19]} Rxd1+ {[%emt 0:00:48]} 24. Qxd1 {[%emt 0:00:09]} Rd8 {[%emt 0:00:07]} 25. Qc1 {[%emt 0:01:13]} Bb3 {[%emt 0:05:21]} 26. c6 {[%emt 0:01:39]} Bc2 {[%emt 0:08:30]} 27. cxb7 {[%emt 0:01:06]} Rb8 {[%emt 0:06:45]} 28. Rb4 {[%emt 0:02:03]} Bc3 {[%emt 0:02:25]} 29. b6 {[%emt 0:21:03]} Bxb4 {[%emt 0:02:04]} 30. bxa7 {[%emt 0:00:08]} Rxb7 {[%emt 0:00:37]} 31. Qxc2 {[%emt 0:00:33]} Qxc2 {[%emt 0:01:47]} 32. a8=Q {[%emt 0:00:08]} Qc6 {[%emt 0:00:29]} 33. Bd4 {[%emt 0:00:53]} g5 {[%emt 0:02:09]} 34. h3 {[%emt 0:06:31]} Bc5 {[%emt 0:00:43]} 35. Qh8+ {[%emt 0:00:29]} Kg6 {[%emt 0:00:00]} 36. Qg8+ {[%emt 0:00:23]} Kh5 {[%emt 0:00:06]} 37. Bxc5 {[%emt 0:00:09]} g4 {[%emt 0:01:23]} 38. hxg4+ {[%emt 0:01:21]} fxg4 {[%emt 0:00:03]} 39. Be3 {[%emt 0:00:33]} Re7 {[%emt 0:00:38]} 40. f3 {[%emt 0:02:08]} exf3 {[%emt 0:00:24]} 41. exf3 {[%emt 0:00:05]} 1-0

[Event "4th EFE Metz Festival-IM"]
[Site "Metz"]
[Date "2018.07.26"]
[Round "5"]
[White "Mohota, Nisha"]
[Black "Adrian, Claude"]
[Result "1-0"]
[ECO "C16"]
[WhiteElo "2265"]
[BlackElo "2267"]
[Annotator "NA"]
[PlyCount "89"]
[EventDate "2018.07.22"]
[EventType "tourn"]
[EventCountry "FRA"]
[SourceTitle "playchess.com"]
[Source "ChessBase"]
[SourceQuality "1"]
[TimeControl "5400+30"]

1. e4 {[%emt 0:00:03]} e6 {[%emt 0:00:09]} 2. d4 {[%emt 0:00:04]} d5 {[%emt 0:00:03]} 3. Nc3 {[%emt 0:00:19]} Bb4 {[%emt 0:00:08]} 4. e5 {[%emt 0:00:03]} Ne7 {[%emt 0:00:21]} 5. a3 {[%emt 0:00:03]} Bxc3+ {[%emt 0:00:06]} 6. bxc3 {[%emt 0:00:02]} b6 {[%emt 0:00:06]} 7. Bd3 {[%emt 0:08:11]} Ba6 {[%emt 0:00:47]} 8. Ne2 {[%emt 0:00:02]} Bxd3 {[%emt 0:03:12]} 9. Qxd3 {[%emt 0:00:27]} c5 {[%emt 0:01:33]} 10. O-O {[%emt 0:05:10]} Qc7 {[%emt 0:01:27]} 11. c4 {[%emt 0:11:16]} dxc4 {[%emt 0:03:48]} 12. Qxc4 {[%emt 0:00:46]} Nd7 {[%emt 0:00:20]} 13. Nc3 {[%emt 0:09:37]} O-O {[%emt 0:02:42]} 14. f4 {[%emt 0:05:27]} Rfc8 {[%emt 0:08:31]} 15. d5 {[%emt 0:02:08]} exd5 {[%emt 0:02:27]} 16. Nxd5 {[%emt 0:00:06]} Nxd5 {[%emt 0:00:06]} 17. Qxd5 {[%emt 0:00:04]} Rd8 {[%emt 0:01:05]} 18. c4 {[%emt 0:09:16]} Nf8 {[%emt 0:03:46]} 19. Qe4 {[%emt 0:00:23]} Qd7 {[%emt 0:02:41]} 20. Be3 {[%emt 0:07:29]} Qd3 {[%emt 0:01:24]} 21. Qf3 {[%emt 0:01:51]} Qxc4 {[%emt 0:05:28]} 22. f5 {[%emt 0:01:31]} Qd5 {[%emt 0:01:41]} 23. Qg3 {[%emt 0:00:57]} Re8 {[%emt 0:14:50]} 24. e6 {[%emt 0:01:56]} Nxe6 {[%emt 0:00:14]} 25. fxe6 {[%emt 0:02:01]} Rxe6 {[%emt 0:01:45]} 26. Rad1 {[%emt 0:04:44]} Qb3 {[%emt 0:04:03]} 27. Bf4 {[%emt 0:02:24]} Qxg3 {[%emt 0:00:15]} 28. Bxg3 {[%emt 0:00:05]} Rae8 {[%emt 0:00:26]} 29. Rd7 {[%emt 0:00:57]} R6e7 {[%emt 0:01:09]} 30. Rxe7 {[%emt 0:02:56]} Rxe7 {[%emt 0:00:16]} 31. Re1 {[%emt 0:00:40]} Rxe1+ {[%emt 0:00:30]} 32. Bxe1 {[%emt 0:00:02]} f5 {[%emt 0:02:08]} 33. Kf2 {[%emt 0:02:50]} Kf7 {[%emt 0:00:15]} 34. Ke3 {[%emt 0:00:44]} Ke6 {[%emt 0:00:48]} 35. Kf4 {[%emt 0:03:51]} b5 {[%emt 0:10:09]} 36. Bc3 {[%emt 0:04:59]} g6 {[%emt 0:00:18]} 37. Kg5 {[%emt 0:03:36]} Kd5 {[%emt 0:00:23]} 38. h4 {[%emt 0:02:46]} Kc4 {[%emt 0:00:11]} 39. Be5 {[%emt 0:01:24]} a5 {[%emt 0:03:24]} 40. Kh6 {[%emt 0:00:24]} b4 {[%emt 0:01:32]} 41. Kxh7 {[%emt 0:05:52]} Kd3 {[%emt 0:02:26]} 42. Kxg6 {[%emt 0:00:52]} c4 {[%emt 0:00:07]} 43. h5 {[%emt 0:01:04]} c3 {[%emt 0:00:09]} 44. h6 {[%emt 0:00:27]} b3 {[%emt 0:02:39]} 45. Bxc3 {[%emt 0:00:04]} 1-0